﻿Departmental Area,Entity,Payment Date,Expense Type,Expense Area,Supplier Name,Payment Reference, Invoice Distribution Amount ,Description,Supplier Type, Expenditure Type 
UK Statistics Authority,Office for National Statistics,03/09/2019,Telecoms,IT Operations,Crown Hosting Data Centres Limited,151672,"2,580.00", Crown Hosted Data,SME,Programme Expenditure
UK Statistics Authority,Office for National Statistics,03/09/2019,It Management And Change,IT Operations,Crown Hosting Data Centres Limited,151672,"63,152.05", Crown Hosted Data,SME,Programme Expenditure
UK Statistics Authority,Office for National Statistics,03/09/2019,It Management And Change,Office Of Chief Data And Information,Crown Hosting Data Centres Limited,151672,"9,110.03", Crown Hosted Data,SME,Programme Expenditure
UK Statistics Authority,Office for National Statistics,03/09/2019,Surveys,Social Surveys Division,Natcen Social Research,151674,"44,147.50", Statistical Services,Large,Programme Expenditure
UK Statistics Authority,Office for National Statistics,03/09/2019,Exp - Purchase Of Goods/Services - Incentive Payments,Social Surveys Division,Natcen Social Research,151674,"61,033.75", Statistical Services,Large,Programme Expenditure
UK Statistics Authority,Office for National Statistics,03/09/2019,Exp - Purchase Of Goods/Services - Contractors,Census & Soc Methodology Dd,Concept Information Technology Ltd T/A Concept Resourcing,151675,"7,288.15", Information Management Services,Large,Programme Expenditure
UK Statistics Authority,Office for National Statistics,03/09/2019,Exp - Purchase Of Goods/Services - It Contractual Services,Tech Delivery Legacy Sp,Concept Information Technology Ltd T/A Concept Resourcing,151675,"28,500.00", Information Management Services,Large,Programme Expenditure
UK Statistics Authority,Office for National Statistics,03/09/2019,Exp - Purchase Of Goods/Services - It Contractual Services,Digital Delivery,Concept Information Technology Ltd T/A Concept Resourcing,151675,"12,084.00", Information Management Services,Large,Programme Expenditure
UK Statistics Authority,Office for National Statistics,03/09/2019,Exp - Short-Term Contract & Agency Staff - Full Cost,Interviewer Management Tu,Concept Information Technology Ltd T/A Concept Resourcing,151675,"1,777.32", Information Management Services,Large,Programme Expenditure
UK Statistics Authority,Office for National Statistics,03/09/2019,Other Goods And Services,Interviewer Management Tu,Concept Information Technology Ltd T/A Concept Resourcing,151675,"1,865.38", Information Management Services,Large,Programme Expenditure
UK Statistics Authority,Office for National Statistics,03/09/2019,Other Goods And Services,Interviewer Support,Concept Information Technology Ltd T/A Concept Resourcing,151675,"1,591.03", Information Management Services,Large,Programme Expenditure
UK Statistics Authority,Office for National Statistics,03/09/2019,Exp - Short-Term Contract & Agency Staff - Full Cost,Prices Division,Concept Information Technology Ltd T/A Concept Resourcing,151675,"3,631.04", Information Management Services,Large,Programme Expenditure
UK Statistics Authority,Office for National Statistics,03/09/2019,Telecoms,IT Operations,BT Global Services,151681,"26,347.91", BT Cloud Services,Large,Programme Expenditure
UK Statistics Authority,Office for National Statistics,03/09/2019,Telecoms,IT Operations,BT Global Services,151682,"49,780.39", BT Cloud Services,Large,Programme Expenditure
UK Statistics Authority,Office for National Statistics,03/09/2019,Travel And Subsistence,Cwt Trainline,Corporate Travel Management ,151685,"37,903.01", Travel and Accommodation Booking Service ,SME,Programme Expenditure
UK Statistics Authority,Office for National Statistics,03/09/2019,Exp - Purchase Of Goods/Services - Contractors,Data Architecture,LA International,151689,"3,203.88", Information Management Services ,SME,Programme Expenditure
UK Statistics Authority,Office for National Statistics,03/09/2019,Exp - Purchase Of Goods/Services - Contractors,Data Architecture,LA International,151689,"7,689.24", Information Management Services ,SME,Programme Expenditure
UK Statistics Authority,Office for National Statistics,03/09/2019,Exp - Purchase Of Goods/Services - Contractors,Data Architecture,LA International,151689,"3,748.50", Information Management Services ,SME,Programme Expenditure
UK Statistics Authority,Office for National Statistics,03/09/2019,Exp - Purchase Of Goods/Services - Contractors,IT Applications,LA International,151689,"11,572.98", Information Management Services ,SME,Programme Expenditure
UK Statistics Authority,Office for National Statistics,03/09/2019,Exp - Purchase Of Goods/Services - Contractors,Digital Delivery,LA International,151689,"14,493.66", Information Management Services ,SME,Programme Expenditure
UK Statistics Authority,Office for National Statistics,03/09/2019,"Ict Outsourcing, Maintenance And Support",Senior Management Team Design,Totalmobile Ltd,151699,"289,753.20", Field Management license and Hosting Charges,SME,Programme Expenditure
UK Statistics Authority,Office for National Statistics,03/09/2019,Other Goods And Services,Stakeholder Engagement And Comms,Four Communications Group Limited,151700,"91,398.12", Communication and Management Information Services,SME,Programme Expenditure
UK Statistics Authority,Office for National Statistics,03/09/2019,Other Goods And Services,Beyond 2021 Research And Design,The Sensible Code Company,151705,"59,670.00", Information Managing Services,SME,Programme Expenditure
UK Statistics Authority,Office for National Statistics,03/09/2019,Exp - Purchase Of Goods/Services - It Contractual Services,Dst Reapportioning,QA Ltd,151708,"137,268.00", Information Management Services,Large,Programme Expenditure
UK Statistics Authority,Office for National Statistics,03/09/2019,Other Goods And Services,Data Collection Service,Good Things Foundation,151712,"269,918.40", Information Managing Services,SME,Programme Expenditure
UK Statistics Authority,Office for National Statistics,03/09/2019,Surveys,Prices Division,Kantar UK Ltd,151714,"195,983.32", Statistical Services,Large,Programme Expenditure
UK Statistics Authority,Office for National Statistics,03/09/2019,Surveys,Prices Division,Kantar UK Ltd,151714,"1,470.60", Statistical Services,Large,Programme Expenditure
UK Statistics Authority,Office for National Statistics,03/09/2019,Special Payments,Census Ccs Data Collection,Adecco UK Limited,151718,"413,501.54", Census Recruitment and Payroll Services,SME,Programme Expenditure
UK Statistics Authority,Office for National Statistics,05/09/2019,Surveys,Social Surveys Division,Natcen Social Research,151960,"277,472.27", Statistical Services,Large,Programme Expenditure
UK Statistics Authority,Office for National Statistics,05/09/2019,Exp - Purchase Of Goods/Services - Incentive Payments,Social Surveys Division,Natcen Social Research,151960,"12,206.75", Statistical Services,Large,Programme Expenditure
UK Statistics Authority,Office for National Statistics,05/09/2019,Surveys,Labour Market,University of Durham,151966,"154,899.60", Statistical Services,Large,Programme Expenditure
UK Statistics Authority,Office for National Statistics,05/09/2019,Travel And Subsistence,Cwt Trainline,Corporate Travel Management ,151968,"40,813.28", Travel and Accommodation Booking Service ,SME,Programme Expenditure
UK Statistics Authority,Office for National Statistics,05/09/2019,Exp - Purchase Of Goods/Services - It Contractual Services,Dst Reapportioning,Methods Business & Digital Technology Ltd,151973,"292,560.00", Information Management Services ,Large,Programme Expenditure
UK Statistics Authority,Office for National Statistics,05/09/2019,Exp - Purchase Of Goods/Services - Accommodation & Bldng Management - Carbon Reduction Commitment,Property Newport,"Department for Business, Energy and Industrial Strategy",151977,"15,696.00", CRC Annual Emissions Newport,SME,Programme Expenditure
UK Statistics Authority,Office for National Statistics,05/09/2019,Exp - Purchase Of Goods/Services - Accommodation & Bldng Management - Carbon Reduction Commitment,Property Titchfield,"Department for Business, Energy and Industrial Strategy",151977,"15,696.00", CRC Annual Emissions Titchfield,SME,Programme Expenditure
UK Statistics Authority,Office for National Statistics,05/09/2019,Exp - Purchase Of Goods/Services - Accommodation & Bldng Management - Carbon Reduction Commitment,Property Christchurch,"Department for Business, Energy and Industrial Strategy",151977,"3,487.80", CRC Annual Emissions Christchurch,SME,Programme Expenditure
UK Statistics Authority,Office for National Statistics,05/09/2019,Hosting,IT Operations,Amazon Web Services Inc,151980,"74,951.48", Web Hosting Services,Large,Programme Expenditure
UK Statistics Authority,Office for National Statistics,05/09/2019,Training & Development,Office Of Chief Data And Information,Armakuni Ltd,151983,"63,360.00", Training ,SME,Programme Expenditure
UK Statistics Authority,Office for National Statistics,06/09/2019,Fm Contract Payments,Mitie Payments,Vinci Construction UK Limited,152127,"90,963.73", Facility Management Services,Large,Programme Expenditure
UK Statistics Authority,Office for National Statistics,06/09/2019,Exp - Purchase Of Goods/Services - It Contractual Services,Dst Reapportioning,Empiric Solutions Limited,152128,"32,760.00", Information Management Services,Large,Programme Expenditure
UK Statistics Authority,Office for National Statistics,10/09/2019,Fm Contract Payments,Mitie Payments,Vinci Construction UK Limited,152412,"315,868.61", Facility Management Services,Large,Programme Expenditure
UK Statistics Authority,Office for National Statistics,10/09/2019,Exp - Short-Term Contract & Agency Staff - Full Cost,Business Change Support,Concept Information Technology Ltd T/A Concept Resourcing,152413,"3,958.70", Information Management Services,Large,Programme Expenditure
UK Statistics Authority,Office for National Statistics,10/09/2019,Exp - Short-Term Contract & Agency Staff - Full Cost,Business Change Support,Concept Information Technology Ltd T/A Concept Resourcing,152413,"2,969.03", Information Management Services,Large,Programme Expenditure
UK Statistics Authority,Office for National Statistics,10/09/2019,Exp - Short-Term Contract & Agency Staff - Full Cost,Business Change Support,Concept Information Technology Ltd T/A Concept Resourcing,152413,"7,472.55", Information Management Services,Large,Programme Expenditure
UK Statistics Authority,Office for National Statistics,10/09/2019,Exp - Short-Term Contract & Agency Staff - Full Cost,Productivity Innovation Engagement And Research,Concept Information Technology Ltd T/A Concept Resourcing,152413,"3,958.70", Information Management Services,Large,Programme Expenditure
UK Statistics Authority,Office for National Statistics,10/09/2019,Special Payments,Productivity Innovation Engagement And Research,Concept Information Technology Ltd T/A Concept Resourcing,152413,"1,979.35", Information Management Services,Large,Programme Expenditure
UK Statistics Authority,Office for National Statistics,10/09/2019,Exp - Short-Term Contract & Agency Staff - Full Cost,Economic Analysis,Concept Information Technology Ltd T/A Concept Resourcing,152413,"2,220.08", Information Management Services,Large,Programme Expenditure
UK Statistics Authority,Office for National Statistics,10/09/2019,Exp - Short-Term Contract & Agency Staff - Full Cost,Prices Division,Concept Information Technology Ltd T/A Concept Resourcing,152413,"3,958.70", Information Management Services,Large,Programme Expenditure
UK Statistics Authority,Office for National Statistics,10/09/2019,Exp - Short-Term Contract & Agency Staff - Full Cost,Business Outputs And Developments,Concept Information Technology Ltd T/A Concept Resourcing,152413,"4,112.51", Information Management Services,Large,Programme Expenditure
UK Statistics Authority,Office for National Statistics,11/09/2019,Exp - Short-Term Contract & Agency Staff - Full Cost,Business Change Support,Concept Information Technology Ltd T/A Concept Resourcing,152433,"3,537.26", Information Management Services,Large,Programme Expenditure
UK Statistics Authority,Office for National Statistics,11/09/2019,Exp - Short-Term Contract & Agency Staff - Full Cost,Business Change Support,Concept Information Technology Ltd T/A Concept Resourcing,152433,"3,437.12", Information Management Services,Large,Programme Expenditure
UK Statistics Authority,Office for National Statistics,11/09/2019,Exp - Short-Term Contract & Agency Staff - Full Cost,Business Change Support,Concept Information Technology Ltd T/A Concept Resourcing,152433,987.54, Information Management Services,Large,Programme Expenditure
UK Statistics Authority,Office for National Statistics,11/09/2019,Exp - Short-Term Contract & Agency Staff - Full Cost,Business Change Support,Concept Information Technology Ltd T/A Concept Resourcing,152433,"8,945.11", Information Management Services,Large,Programme Expenditure
UK Statistics Authority,Office for National Statistics,11/09/2019,Exp - Short-Term Contract & Agency Staff - Full Cost,Business Change Support,Concept Information Technology Ltd T/A Concept Resourcing,152433,"10,810.78", Information Management Services,Large,Programme Expenditure
UK Statistics Authority,Office for National Statistics,11/09/2019,Exp - Short-Term Contract & Agency Staff - Full Cost,Business Change Support,Concept Information Technology Ltd T/A Concept Resourcing,152433,608.52, Information Management Services,Large,Programme Expenditure
UK Statistics Authority,Office for National Statistics,11/09/2019,Exp - Purchase Of Goods/Services - Contractors,Business Change Support,Concept Information Technology Ltd T/A Concept Resourcing,152433,"7,917.40", Information Management Services,Large,Programme Expenditure
UK Statistics Authority,Office for National Statistics,11/09/2019,Exp - Purchase Of Goods/Services - Contractors,Business Change Support,Concept Information Technology Ltd T/A Concept Resourcing,152433,"4,654.16", Information Management Services,Large,Programme Expenditure
UK Statistics Authority,Office for National Statistics,11/09/2019,Exp - Purchase Of Goods/Services - Contractors,Business Change Support,Concept Information Technology Ltd T/A Concept Resourcing,152433,180, Information Management Services,Large,Programme Expenditure
UK Statistics Authority,Office for National Statistics,11/09/2019,Exp - Purchase Of Goods/Services - Contractors,Business Change Support,Concept Information Technology Ltd T/A Concept Resourcing,152433,"3,165.23", Information Management Services,Large,Programme Expenditure
UK Statistics Authority,Office for National Statistics,11/09/2019,Exp - Purchase Of Goods/Services - Contractors,Business Change Support,Concept Information Technology Ltd T/A Concept Resourcing,152433,"10,204.36", Information Management Services,Large,Programme Expenditure
UK Statistics Authority,Office for National Statistics,11/09/2019,Training & Development,Business Change Support,Concept Information Technology Ltd T/A Concept Resourcing,152433,"3,958.70", Information Management Services,Large,Programme Expenditure
UK Statistics Authority,Office for National Statistics,11/09/2019,Exp - Short-Term Contract & Agency Staff - Full Cost,N A Coordination,Concept Information Technology Ltd T/A Concept Resourcing,152433,"3,958.70", Information Management Services,Large,Programme Expenditure
UK Statistics Authority,Office for National Statistics,11/09/2019,Exp - Short-Term Contract & Agency Staff - Full Cost,Business Indicators And B O P,Concept Information Technology Ltd T/A Concept Resourcing,152433,"3,775.75", Information Management Services,Large,Programme Expenditure
UK Statistics Authority,Office for National Statistics,11/09/2019,Exp - Short-Term Contract & Agency Staff - Full Cost,Business Indicators And B O P,Concept Information Technology Ltd T/A Concept Resourcing,152433,"8,678.88", Information Management Services,Large,Programme Expenditure
UK Statistics Authority,Office for National Statistics,11/09/2019,Exp - Short-Term Contract & Agency Staff - Full Cost,Business Indicators And B O P,Concept Information Technology Ltd T/A Concept Resourcing,152433,"6,671.50", Information Management Services,Large,Programme Expenditure
UK Statistics Authority,Office for National Statistics,11/09/2019,Exp - Short-Term Contract & Agency Staff - Full Cost,Business Indicators And B O P,Concept Information Technology Ltd T/A Concept Resourcing,152433,"4,138.50", Information Management Services,Large,Programme Expenditure
UK Statistics Authority,Office for National Statistics,11/09/2019,Exp - Purchase Of Goods/Services - Contractors,Business Indicators And B O P,Concept Information Technology Ltd T/A Concept Resourcing,152433,"4,948.37", Information Management Services,Large,Programme Expenditure
UK Statistics Authority,Office for National Statistics,11/09/2019,Exp - Purchase Of Goods/Services - Contractors,Business Indicators And B O P,Concept Information Technology Ltd T/A Concept Resourcing,152433,"3,758.10", Information Management Services,Large,Programme Expenditure
UK Statistics Authority,Office for National Statistics,11/09/2019,Exp - Short-Term Contract & Agency Staff - Full Cost,Public Sector And Households,Concept Information Technology Ltd T/A Concept Resourcing,152433,989.68, Information Management Services,Large,Programme Expenditure
UK Statistics Authority,Office for National Statistics,11/09/2019,Exp - Purchase Of Goods/Services - Contractors,Business Statistics Transformation,Concept Information Technology Ltd T/A Concept Resourcing,152433,"3,958.70", Information Management Services,Large,Programme Expenditure
UK Statistics Authority,Office for National Statistics,11/09/2019,Other Goods And Services,Interviewer Management Tu,Concept Information Technology Ltd T/A Concept Resourcing,152433,"1,839.98", Information Management Services,Large,Programme Expenditure
UK Statistics Authority,Office for National Statistics,11/09/2019,Exp - Short-Term Contract & Agency Staff - Full Cost,Prices Division,Concept Information Technology Ltd T/A Concept Resourcing,152433,"3,958.70", Information Management Services,Large,Programme Expenditure
UK Statistics Authority,Office for National Statistics,11/09/2019,Exp - Short-Term Contract & Agency Staff - Full Cost,Prices Division,Concept Information Technology Ltd T/A Concept Resourcing,152433,"3,958.70", Information Management Services,Large,Programme Expenditure
UK Statistics Authority,Office for National Statistics,11/09/2019,Travel And Subsistence,Cwt Trainline,Corporate Travel Management ,152434,"82,887.99", Travel and Accommodation Booking Service ,SME,Programme Expenditure
UK Statistics Authority,Office for National Statistics,12/09/2019,Stationery,Lodgecard,Royal Bank of Scotland,152773,"7,839.38", Multiple Procurement Card Stationery Purchases  ,Large,Programme Expenditure
UK Statistics Authority,Office for National Statistics,12/09/2019,Other Goods And Services,GPC,Royal Bank of Scotland,152773,"53,917.79", Multiple Procurement Card Purchases  ,Large,Programme Expenditure
UK Statistics Authority,Office for National Statistics,12/09/2019,Travel And Subsistence,Car Hire,Royal Bank of Scotland,152773,"55,211.08", Multiple Procurement Car Hire Purchases  ,Large,Programme Expenditure
UK Statistics Authority,Office for National Statistics,12/09/2019,Other Goods And Services,Beyond 2021 Research And Design,The Sensible Code Company,152777,"35,190.00", Information Management Services,SME,Programme Expenditure
UK Statistics Authority,Office for National Statistics,17/09/2019,"Ict Outsourcing, Maintenance And Support",Senior Management Team Design,Totalmobile Ltd,153438,"326,413.20", Field Management license and Hosting Charges,SME,Programme Expenditure
UK Statistics Authority,Office for National Statistics,17/09/2019,Software Licences At Cost - Additions,Stakeholder Engagement And Comms,Brandwatch,153440,"39,835.20", Software Licenses,SME,Programme Expenditure
UK Statistics Authority,Office for National Statistics,18/09/2019,Exp - Permanent Uk Staff - Prp Voucher Payments,Ons Corporate Funds,Park Retail Ltd,153449,"13,328.23", Love2Shop Employee Performance Reward Payment ,Large,Programme Expenditure
UK Statistics Authority,Office for National Statistics,18/09/2019,Exp - Purchase Of Goods/Services - Incentive Payments,Survey Management,Park Retail Ltd,153449,"2,264.43", Survey Incentive Payments,Large,Programme Expenditure
UK Statistics Authority,Office for National Statistics,18/09/2019,Exp - Purchase Of Goods/Services - Incentive Payments,Survey Management,Park Retail Ltd,153449,"16,063.82", Survey Incentive Payments,Large,Programme Expenditure
UK Statistics Authority,Office for National Statistics,18/09/2019,Travel And Subsistence,CWT Trainline,Corporate Travel Management ,153452,"82,803.23", Travel and Accommodation Booking Service ,SME,Programme Expenditure
UK Statistics Authority,Office for National Statistics,23/09/2019,Exp - Purchase Of Goods And Services Consultants,Consultancy Management,Deloitte,154048,"47,719.20", Information Management Services ,Large,Programme Expenditure
UK Statistics Authority,Office for National Statistics,23/09/2019,Rent Payable,Property Titchfield,Eaton Aerospace Limited,154049,"27,488.40", Car Parking Facilities Charges at Titchfield Office,Large,Programme Expenditure
UK Statistics Authority,Office for National Statistics,23/09/2019,Rent Payable,Property London,Tandem Property Asset Management LLP (Rent),154056,"202,860.00", Drummond Gate Rent September 2019 to March 2020,Large,Programme Expenditure
UK Statistics Authority,Office for National Statistics,23/09/2019,Exp - Purchase Of Goods/Services - Other Facilities Costs,Property London,Tandem Property Asset Management LLP - DG Lease Limited Service Charge Account,154057,"57,702.00", Drummond Gate service Charges September 2019 to March 2020,Large,Programme Expenditure
UK Statistics Authority,Office for National Statistics,24/09/2019,Exp - Purchase Of Goods/Services - It Contractual Services,Tech Delivery Next Gen IT And Infrastructure,Cysure Limited,154354,"29,747.57", Software Support,SME,Programme Expenditure
UK Statistics Authority,Office for National Statistics,25/09/2019,Travel And Subsistence,Cwt Trainline,Corporate Travel Management ,154362,"75,681.73", Travel and Accommodation Booking Service ,SME,Programme Expenditure
UK Statistics Authority,Office for National Statistics,25/09/2019,"Ict Outsourcing, Maintenance And Support",IT Operations,CTS (Cloud Technology Solutions Ltd),154373,"38,944.68", Google Cloud Services,Large,Programme Expenditure
UK Statistics Authority,Office for National Statistics,26/09/2019,Exp - Purchase Of Goods/Services - It Contractual Services,Tech Delivery Srs,Equiniti-TopLevel,154744,"71,162.38", Information Management Services,SME,Programme Expenditure
UK Statistics Authority,Office for National Statistics,26/09/2019,Other Goods And Services,Operations,Cabinet Office,154745,"26,467.72", Fast Stream Employment Charges,Large,Programme Expenditure
UK Statistics Authority,Office for National Statistics,26/09/2019,Other Goods And Services,Programme Delivery,Cabinet Office,154745,"45,012.00", Fast Stream Employment Charges,Large,Programme Expenditure
UK Statistics Authority,Office for National Statistics,26/09/2019,Other Goods And Services,Learning And Capability,Cabinet Office,154745,"13,688.85", Fast Stream Employment Charges,Large,Programme Expenditure
UK Statistics Authority,Office for National Statistics,26/09/2019,Other Goods And Services,Data Science Campus,Cabinet Office,154745,"19,850.79", Fast Stream Employment Charges,Large,Programme Expenditure
UK Statistics Authority,Office for National Statistics,26/09/2019,Surveys,Prices Division,UK Finance,154746,"44,760.00", Statistical Data ,SME,Programme Expenditure
UK Statistics Authority,Office for National Statistics,26/09/2019,Exp - Purchase Of Goods/Services - Contractors,Testing,LA International,154747,"18,838.58", Information Management Services ,SME,Programme Expenditure
UK Statistics Authority,Office for National Statistics,26/09/2019,Exp - Purchase Of Goods/Services - Contractors,Business Indicators And B O P,LA International,154747,"2,050.46", Information Management Services ,SME,Programme Expenditure
UK Statistics Authority,Office for National Statistics,26/09/2019,Exp - Purchase Of Goods/Services - Contractors,Security Advisory,LA International,154747,"14,609.56", Information Management Services ,SME,Programme Expenditure
UK Statistics Authority,Office for National Statistics,26/09/2019,Exp - Purchase Of Goods/Services - Contractors,Data Architecture,LA International,154747,"7,176.60", Information Management Services ,SME,Programme Expenditure
UK Statistics Authority,Office for National Statistics,26/09/2019,Exp - Purchase Of Goods/Services - Contractors,Data Architecture,LA International,154747,"5,382.47", Information Management Services ,SME,Programme Expenditure
UK Statistics Authority,Office for National Statistics,26/09/2019,Exp - Purchase Of Goods/Services - Contractors,Data Architecture,LA International,154747,"7,497.00", Information Management Services ,SME,Programme Expenditure
UK Statistics Authority,Office for National Statistics,26/09/2019,Exp - Purchase Of Goods/Services - Contractors,Tech Delivery Srs,LA International,154747,"10,764.90", Information Management Services ,SME,Programme Expenditure
UK Statistics Authority,Office for National Statistics,26/09/2019,Exp - Purchase Of Goods/Services - Contractors,Tech Delivery Data As A Platform,LA International,154747,"8,611.92", Information Management Services ,SME,Programme Expenditure
UK Statistics Authority,Office for National Statistics,26/09/2019,Exp - Purchase Of Goods/Services - Contractors,Tech Delivery Data As A Platform,LA International,154747,"3,156.90", Information Management Services ,SME,Programme Expenditure
UK Statistics Authority,Office for National Statistics,26/09/2019,Exp - Purchase Of Goods/Services - Contractors,IT Applications,LA International,154747,"33,314.10", Information Management Services ,SME,Programme Expenditure
UK Statistics Authority,Office for National Statistics,26/09/2019,Exp - Purchase Of Goods/Services - Contractors,Digital Delivery,LA International,154747,"21,530.02", Information Management Services ,SME,Programme Expenditure
UK Statistics Authority,Office for National Statistics,26/09/2019,Exp - Purchase Of Goods/Services - Contractors,Digital Delivery,LA International,154747,"10,047.24", Information Management Services ,SME,Programme Expenditure
UK Statistics Authority,Office for National Statistics,26/09/2019,Exp - Purchase Of Goods/Services - Contractor Travel,Digital Delivery,LA International,154747,44.76, Information Management Services ,SME,Programme Expenditure
UK Statistics Authority,Office for National Statistics,26/09/2019,Exp - Purchase Of Goods/Services - Other Ict Costs Software,Policy Secretariat,Diligent Boardbooks Limited,154750,"36,600.00", Information Management Services,Large,Programme Expenditure
UK Statistics Authority,Office for National Statistics,26/09/2019,Exp - Purchase Of Goods/Services - It Contractual Services,IT Applications,Cysure Limited,154752,"130,737.72", Software Support,SME,Programme Expenditure
UK Statistics Authority,Office for National Statistics,26/09/2019,Special Payments,Data Collection Service,HH Associates Ltd,154753,"36,000.00", Census Print and Post Out Contract,SME,Programme Expenditure
UK Statistics Authority,Office for National Statistics,26/09/2019,Telecoms,IT Operations,BT Global Services,154757,"26,070.19", BT Cloud Services,Large,Programme Expenditure
UK Statistics Authority,Office for National Statistics,26/09/2019,Postage,Survey Processing Centre,DHL Parcel Ltd,154759,"49,720.83", Outgoing Postage,Large,Programme Expenditure
UK Statistics Authority,Office for National Statistics,26/09/2019,Telecoms,IT Operations,CenturyLink Communications UK Ltd,154760,"37,045.86", Information Management Services ,Large,Programme Expenditure
UK Statistics Authority,Office for National Statistics,18/09/2019,Electricity,Property Newport,EDF Energy,30001558,"28,248.17", Electricity Charges Newport,Large,Programme Expenditure
UK Statistics Authority,Office for National Statistics,18/09/2019,Electricity,Property Titchfield,EDF Energy,30001562,"27,297.51", Electricity Charges Titchfield,Large,Programme Expenditure
UK Statistics Authority,Office for National Statistics,24/09/2019,"Ict Outsourcing, Maintenance And Support",IT Operations,Safari Books Online,30001572,"57,394.56", Subscription Renewal,Large,Programme Expenditure
UK Statistics Authority,Office for National Statistics,30/09/2019,"Ict Outsourcing, Maintenance And Support",Digital Publishing,Methods Business & Digital Technology Ltd,30001580,"17,100.00", Information Management Services ,Large,Programme Expenditure
UK Statistics Authority,Office for National Statistics,30/09/2019,Exp - Purchase Of Goods/Services - It Contractual Services,Dst Reapportioning,Methods Business & Digital Technology Ltd,30001580,"184,432.50", Information Management Services ,Large,Programme Expenditure
UK Statistics Authority,Office for National Statistics,30/09/2019,Exp - Purchase Of Goods/Services - It Contractual Services,Tech Delivery Next Gen IT And Infrastructure,E Synergy Solutions,30001581,"35,010.00", Information Management Services ,SME,Programme Expenditure
